fUST/lending_fUST_20250627
["ID","MTS","AMOUNT","RATE_DAILY","PERIOD"]
[368124057,1751032241779,-460.0,0.00020547,2]
[368124059,1751032241789,-760.73,0.00020547,2]
[368124061,1751032241799,-460.0,0.00020547,2]
[368124063,1751032241809,-994.85,0.00020547,2]
[368124065,1751032241818,-707.37,0.00020547,2]
[368124067,1751032241828,-460.0,0.00020547,2]
[368124069,1751032241838,-460.0,0.00020547,2]
[368124071,1751032241848,-460.0,0.00020547,2]
[368124074,1751032241859,-460.0,0.00020547,2]
[368124076,1751032241868,-1474.22,0.00020547,2]
[368124078,1751032241878,-460.0,0.00020547,2]
[368124080,1751032241888,-460.0,0.00020547,2]
[368124082,1751032241898,-460.0,0.00020547,2]
[368124084,1751032241908,-1115.8,0.00020547,2]
[368124086,1751032241918,-2078.45,0.00020547,2]
[368124088,1751032241928,-1750.13,0.00020547,2]
[368124090,1751032241938,-460.0,0.00020547,2]
[368124092,1751032241947,-460.0,0.00020547,2]
[368124094,1751032241957,-460.0,0.00020547,2]
[368124096,1751032241966,-460.0,0.00020547,2]
[368124098,1751032241975,-1434.41,0.00020547,2]
[368124100,1751032241985,-460.0,0.00020547,2]
[368124102,1751032241995,-460.0,0.00020547,2]
[368124104,1751032242004,-605.01,0.00020547,2]
[368124106,1751032242013,-761.86,0.00020547,2]
[368124108,1751032242022,-160.0,0.0002056,2]
[368124110,1751032242032,-160.0,0.0002056,2]
[368124112,1751032242041,-214.91804724,0.0002056,2]
[368124114,1751032242050,-12562.41216491,0.0002056,2]
[368124116,1751032242059,-836.98798914,0.0002056,2]
[368124118,1751032242069,-160.0,0.0002056,2]
[368124120,1751032242078,-160.0,0.0002056,2]
[368124122,1751032242087,-230.26210603,0.0002056,2]
[368124124,1751032242096,-213.75309343,0.0002056,2]
[368124126,1751032242106,-160.0,0.0002056,2]
[368124128,1751032242115,-160.0,0.0002056,2]
[368124130,1751032242124,-160.0,0.0002056,2]
[368124132,1751032242133,-3142.22,0.000206,2]
[368124134,1751032242143,-420.0,0.00020702,2]
[368124136,1751032242152,-169.12576372,0.00020728,3]
[368124137,1751032242161,-6204.46356053,0.00020728,3]
[368124139,1751032242170,-5000.0,0.00020818,2]
[368124141,1751032242179,-460.0,0.00020821,2]
[368124143,1751032242189,-460.0,0.00020821,2]
[368124145,1751032242199,-302.96407043,0.00020821,2]
[368124147,1751032242209,-652.89,0.00020821,2]
[368124149,1751032242218,-2172.8,0.00020821,2]
[368124151,1751032242227,-460.0,0.00020821,2]
[368124153,1751032242237,-1061.75,0.00020821,2]
[368124155,1751032242246,-817.76,0.00020821,2]
[368124157,1751032242256,-460.0,0.00020821,2]
[368124159,1751032242265,-2093.98,0.00020821,2]
[368124161,1751032242274,-462.9,0.00020821,2]
[368124163,1751032242284,-585.84,0.00020821,2]
[368124165,1751032242293,-460.0,0.00020821,2]
[368124167,1751032242303,-460.0,0.00020821,2]
[368124169,1751032242312,-460.0,0.00020821,2]
[368124171,1751032242322,-460.0,0.00020821,2]
[368124173,1751032242331,-460.0,0.00020821,2]
[368124175,1751032242340,-503.43576769,0.00020821,2]
[368124177,1751032242349,-460.0,0.00020821,2]
[368124179,1751032242359,-760.73,0.00020821,2]
[368124181,1751032242369,-460.0,0.00020821,2]
[368124183,1751032242378,-994.85,0.00020821,2]
[368124185,1751032242387,-707.37,0.00020821,2]
[368124187,1751032242397,-460.0,0.00020821,2]
[368124189,1751032242407,-460.0,0.00020821,2]
[368124191,1751032242416,-460.0,0.00020821,2]
[368124193,1751032242426,-460.0,0.00020821,2]
[368124195,1751032242438,-1474.22,0.00020821,2]
[368124197,1751032242447,-460.0,0.00020821,2]
[368124199,1751032242457,-460.0,0.00020821,2]
[368124201,1751032242467,-460.0,0.00020821,2]
[368124203,1751032242477,-1115.8,0.00020821,2]
[368124205,1751032242487,-2078.45,0.00020821,2]
[368124207,1751032242497,-1750.13,0.00020821,2]
[368124209,1751032242506,-500.32406015,0.00020821,2]
[368124211,1751032242517,-460.0,0.00020821,2]
[368124213,1751032242527,-460.0,0.00020821,2]
[368124215,1751032242536,-460.0,0.00020821,2]
[368124217,1751032242546,-1434.41,0.00020821,2]
[368124219,1751032242556,-460.0,0.00020821,2]
[368124221,1751032242565,-460.0,0.00020821,2]
[368124223,1751032242575,-605.01,0.00020821,2]
[368124225,1751032242584,-761.86,0.00020821,2]
[368124227,1751032242592,-818.85055983,0.00020905,2]
[368124229,1751032242602,-6204.46356053,0.00020934,4]
[368124231,1751032242611,-182.83945459,0.00020975,2]
[368124233,1751032242621,-900.0,0.00021,3]
[368124235,1751032242630,-1500.0,0.00021068,2]
[368124237,1751032242640,-460.0,0.00021095,2]
[368124239,1751032242649,-460.0,0.00021095,2]
[368124241,1751032242658,-652.89,0.00021095,2]
[368124243,1751032242668,-2172.8,0.00021095,2]
[368124245,1751032242677,-460.0,0.00021095,2]
[368124247,1751032242687,-1061.75,0.00021095,2]
[368124249,1751032242696,-817.76,0.00021095,2]
[368124251,1751032242705,-460.0,0.00021095,2]
[368124253,1751032242715,-2093.98,0.00021095,2]
[368124256,1751032242724,-462.9,0.00021095,2]
[368124259,1751032242736,-585.84,0.00021095,2]
[368124260,1751032242745,-460.0,0.00021095,2]
[368124262,1751032242755,-460.0,0.00021095,2]
[368124264,1751032242765,-460.0,0.00021095,2]
[368124266,1751032242774,-460.0,0.00021095,2]
[368124269,1751032242784,-460.0,0.00021095,2]
[368124270,1751032242793,-460.0,0.00021095,2]
[368124272,1751032242803,-760.73,0.00021095,2]
[368124274,1751032242812,-249.0193823,0.00021095,2]
[368124276,1751032242821,-994.85,0.00021095,2]
[368124279,1751032242832,-707.37,0.00021095,2]
[368124281,1751032242842,-460.0,0.00021095,2]
[368124283,1751032242851,-460.0,0.00021095,2]
[368124285,1751032242861,-460.0,0.00021095,2]
[368124287,1751032242870,-460.0,0.00021095,2]
[368124288,1751032242880,-1474.22,0.00021095,2]
[368124291,1751032242889,-460.0,0.00021095,2]
[368124293,1751032242899,-460.0,0.00021095,2]
[368124295,1751032242908,-550.67,0.00021095,2]
[368124297,1751032242918,-1115.8,0.00021095,2]
[368124299,1751032242927,-2078.45,0.00021095,2]
[368124301,1751032242936,-1750.13,0.00021095,2]
[368124303,1751032242945,-460.0,0.00021095,2]
[368124304,1751032242955,-460.0,0.00021095,2]
[368124306,1751032242964,-460.0,0.00021095,2]
[368124309,1751032242974,-1434.41,0.00021095,2]
[368124311,1751032242985,-460.0,0.00021095,2]
[368124313,1751032242994,-460.0,0.00021095,2]
[368124315,1751032243003,-605.01,0.00021095,2]
[368124317,1751032243012,-761.86,0.00021095,2]
[368124319,1751032243022,-6204.46356053,0.00021141,4]
[368124321,1751032243031,-636.698,0.00021165,2]
[368124323,1751032243040,-6204.46356053,0.00021348,5]
[368124325,1751032243050,-460.0,0.00021369,2]
[368124327,1751032243059,-460.0,0.00021369,2]
[368124329,1751032243069,-652.89,0.00021369,2]
[368124331,1751032243078,-460.0,0.00021369,2]
[368124333,1751032243088,-2172.8,0.00021369,2]
[368124335,1751032243097,-1061.75,0.00021369,2]
[368124337,1751032243106,-817.76,0.00021369,2]
[368124339,1751032243116,-460.0,0.00021369,2]
[368124341,1751032243125,-2093.98,0.00021369,2]
[368124343,1751032243135,-462.9,0.00021369,2]
[368124345,1751032243144,-585.84,0.00021369,2]
[368124347,1751032243154,-460.0,0.00021369,2]
[368124360,1751032243273,-460.0,0.00021369,2]
[368124362,1751032243283,-460.0,0.00021369,2]
[368124364,1751032243293,-460.0,0.00021369,2]
[368124366,1751032243303,-460.0,0.00021369,2]
[368124368,1751032243313,-460.0,0.00021369,2]
[368124370,1751032243323,-760.73,0.00021369,2]
[368124372,1751032243332,-994.85,0.00021369,2]
[368124375,1751032243343,-707.37,0.00021369,2]
[368124377,1751032243352,-460.0,0.00021369,2]
[368124378,1751032243362,-460.0,0.00021369,2]
[368124381,1751032243371,-460.0,0.00021369,2]
[368124382,1751032243381,-460.0,0.00021369,2]
[368124385,1751032243391,-1474.22,0.00021369,2]
[368124387,1751032243401,-460.0,0.00021369,2]
[368124388,1751032243410,-460.0,0.00021369,2]
[368124390,1751032243420,-1115.8,0.00021369,2]
[368124392,1751032243430,-2078.45,0.00021369,2]
[368124394,1751032243446,-1750.13,0.00021369,2]
[368124396,1751032243455,-460.0,0.00021369,2]
[368124399,1751032243467,-460.0,0.00021369,2]
[368124401,1751032243477,-460.0,0.00021369,2]
[368124402,1751032243488,-1434.41,0.00021369,2]
[368124404,1751032243497,-460.0,0.00021369,2]
[368124406,1751032243506,-460.0,0.00021369,2]
[368124409,1751032243518,-605.01,0.00021369,2]
[368124410,1751032243527,-761.86,0.00021369,2]
[368124413,1751032243536,-6204.46356053,0.00021555,5]
[368124416,1751032243546,-697.0,0.00021557,2]
[368124418,1751032243555,-2000.0,0.00021616,2]
[368124437,1751032243772,-818.85055983,0.00021637,2]
[368124438,1751032243781,-215.0738,0.00021639,2]
[368124439,1751032243790,-460.0,0.00021643,2]
[368124440,1751032243800,-460.0,0.00021643,2]
[368124441,1751032243810,-652.89,0.00021643,2]
[368124442,1751032243823,-460.0,0.00021643,2]
[368124443,1751032243833,-2172.8,0.00021643,2]
[368124444,1751032243842,-1061.75,0.00021643,2]
[368124445,1751032243851,-817.76,0.00021643,2]
[368124446,1751032243861,-460.0,0.00021643,2]
[368124447,1751032243870,-2093.98,0.00021643,2]
[368124448,1751032243880,-462.9,0.00021643,2]
[368124449,1751032243889,-585.84,0.00021643,2]
[368124450,1751032243898,-460.0,0.00021643,2]
[368124452,1751032243907,-460.0,0.00021643,2]
[368124454,1751032243916,-460.0,0.00021643,2]
[368124456,1751032243925,-460.0,0.00021643,2]
[368124458,1751032243935,-460.0,0.00021643,2]
[368124460,1751032243944,-460.0,0.00021643,2]
[368124462,1751032243953,-760.73,0.00021643,2]
[368124464,1751032243963,-994.85,0.00021643,2]
[368124466,1751032243973,-707.37,0.00021643,2]
[368124468,1751032243983,-460.0,0.00021643,2]
[368124470,1751032243993,-460.0,0.00021643,2]
[368124472,1751032244002,-460.0,0.00021643,2]
[368124474,1751032244012,-460.0,0.00021643,2]
[368124476,1751032244021,-1474.22,0.00021643,2]
[368124478,1751032244031,-460.0,0.00021643,2]
[368124480,1751032244041,-460.0,0.00021643,2]
[368124483,1751032244050,-1115.8,0.00021643,2]
[368124485,1751032244060,-2078.45,0.00021643,2]
[368124488,1751032244069,-1750.13,0.00021643,2]
[368124491,1751032244079,-460.0,0.00021643,2]
[368124493,1751032244087,-460.0,0.00021643,2]
[368124495,1751032244097,-460.0,0.00021643,2]
[368124497,1751032244106,-1434.41,0.00021643,2]
[368124499,1751032244115,-460.0,0.00021643,2]
[368124501,1751032244125,-460.0,0.00021643,2]
[368124503,1751032244133,-605.01,0.00021643,2]
[368124505,1751032244143,-761.86,0.00021643,2]
[368124507,1751032244151,-966.0,0.00021645,2]
[368124509,1751032244161,-2161.0,0.00021645,2]
[368124512,1751032244171,-654.0,0.00021645,2]
[368124513,1751032244180,-362.11921019,0.00021713,2]
[368124515,1751032244189,-6204.46356053,0.00021762,5]
[368124517,1751032244199,-5454.23665273,0.00021917,2]
[368124519,1751032244209,-460.0,0.00021917,2]
[368124521,1751032244219,-460.0,0.00021917,2]
[368124523,1751032244228,-652.89,0.00021917,2]
[368124525,1751032244238,-460.0,0.00021917,2]
[368124527,1751032244248,-2172.8,0.00021917,2]
[368124529,1751032244257,-1061.75,0.00021917,2]
[368124531,1751032244266,-817.76,0.00021917,2]
[368124533,1751032244276,-460.0,0.00021917,2]
[368124535,1751032244285,-2093.98,0.00021917,2]
[368124537,1751032244294,-462.9,0.00021917,2]
[368124539,1751032244304,-585.84,0.00021917,2]
[368124541,1751032244313,-460.0,0.00021917,2]
[368124543,1751032244323,-460.0,0.00021917,2]
[368124545,1751032244333,-460.0,0.00021917,2]
[368124547,1751032244342,-460.0,0.00021917,2]
[368124549,1751032244352,-460.0,0.00021917,2]
[368124551,1751032244361,-460.0,0.00021917,2]
[368124553,1751032244371,-760.73,0.00021917,2]
[368124555,1751032244380,-994.85,0.00021917,2]
[368124557,1751032244391,-707.37,0.00021917,2]
[368124559,1751032244401,-460.0,0.00021917,2]
[368124561,1751032244410,-460.0,0.00021917,2]
[368124563,1751032244420,-460.0,0.00021917,2]
[368124565,1751032244429,-460.0,0.00021917,2]
[368124567,1751032244442,-1474.22,0.00021917,2]
[368124569,1751032244452,-460.0,0.00021917,2]
[368124571,1751032244461,-290.78336113,0.00021917,2]
[368124573,1751032244470,-1115.8,0.00021917,2]
[368124575,1751032244480,-2078.45,0.00021917,2]
[368124577,1751032244490,-1750.13,0.00021917,2]
[368124579,1751032244499,-460.0,0.00021917,2]
[368124581,1751032244509,-460.0,0.00021917,2]
[368124583,1751032244518,-460.0,0.00021917,2]
[368124585,1751032244528,-1434.41,0.00021917,2]
[368124587,1751032244538,-460.0,0.00021917,2]
[368124589,1751032244546,-460.0,0.00021917,2]
[368124591,1751032244556,-605.01,0.00021917,2]
[368124593,1751032244566,-761.86,0.00021917,2]
[368124595,1751032244576,-157.976659,0.00021918,2]
[368124597,1751032244585,-209.75577767,0.00021918,2]
[368124599,1751032244595,-182.83945459,0.00021924,2]
[368124601,1751032244604,-500.0,0.00021968,2]
[368124603,1751032244613,-500.0,0.00021968,2]
[368124605,1751032244623,-500.0,0.00021968,2]
[368124607,1751032244632,-500.0,0.00021968,2]
[368124609,1751032244641,-600.0,0.00021968,2]
[368124611,1751032244651,-500.0,0.00021968,2]
[368124612,1751032244660,-500.0,0.00021968,2]
[368124614,1751032244670,-639.89679522,0.00021968,2]
[368124616,1751032244679,-6204.46356053,0.00021969,6]
[368124618,1751032244689,-494.99953402,0.00021973,2]
[368124620,1751032244698,-547.23150364,0.00021973,2]
[368124622,1751032244707,-500.0,0.00021999,2]
[368124624,1751032244716,-383.82736876,0.00021999,2]
[368124626,1751032244725,-494.43542243,0.00021999,2]
[368124628,1751032244735,-500.0,0.00021999,2]
[368124630,1751032244744,-500.0,0.00021999,2]
[368124632,1751032244754,-616.28094779,0.00021999,2]
[368124634,1751032244763,-500.0,0.00021999,2]
[368124636,1751032244773,-500.0,0.00021999,2]
[368124638,1751032244782,-500.0,0.00021999,2]
[368124640,1751032244791,-503.99680582,0.00021999,2]
[368124642,1751032244800,-500.0,0.00021999,2]
[368124644,1751032244809,-361.5,0.00021999,2]
[368124646,1751032244818,-500.0,0.00021999,2]
[368124648,1751032244828,-500.0,0.00021999,2]
[368124650,1751032244838,-500.0,0.00021999,2]
[368124652,1751032244848,-166.41667518,0.00021999,2]
[368124654,1751032244857,-2000.0,0.00022,2]
[368124656,1751032244866,-2000.0,0.00022,2]
[368124658,1751032244875,-15498.2,0.00022,7]
[368124660,1751032244884,-216581.3,0.00022,7]
[368124662,1751032244893,-213.75309343,0.00022,7]
[368124664,1751032244902,-3142.22,0.000221,7]
[368124666,1751032244911,-697.0,0.00022134,2]
[368124668,1751032244920,-697.0,0.0002214,2]
[368124670,1751032244930,-1500.0,0.00022164,2]
[368124671,1751032244939,-6204.46356053,0.00022176,6]
[368124673,1751032244948,-460.0,0.00022191,2]
[368124675,1751032244957,-460.0,0.00022191,2]
[368124677,1751032244966,-652.89,0.00022191,2]
[368124680,1751032244976,-460.0,0.00022191,2]
[368124682,1751032244987,-2172.8,0.00022191,2]
[368124684,1751032244997,-1061.75,0.00022191,2]
[368124685,1751032245006,-817.76,0.00022191,2]
[368124688,1751032245016,-460.0,0.00022191,2]
[368124689,1751032245026,-2093.98,0.00022191,2]
[368124691,1751032245036,-462.9,0.00022191,2]
[368124693,1751032245045,-585.84,0.00022191,2]
[368124695,1751032245054,-460.0,0.00022191,2]
[368124697,1751032245063,-460.0,0.00022191,2]
[368124699,1751032245072,-460.0,0.00022191,2]
[368124701,1751032245082,-460.0,0.00022191,2]
[368124704,1751032245091,-460.0,0.00022191,2]
[368124705,1751032245100,-460.0,0.00022191,2]
[368124707,1751032245109,-760.73,0.00022191,2]
[368124709,1751032245119,-994.85,0.00022191,2]
[368124712,1751032245129,-707.37,0.00022191,2]
[368124714,1751032245139,-460.0,0.00022191,2]
[368124715,1751032245148,-460.0,0.00022191,2]
[368124717,1751032245157,-460.0,0.00022191,2]
[368124719,1751032245166,-460.0,0.00022191,2]
[368124721,1751032245175,-1474.22,0.00022191,2]
[368124723,1751032245184,-460.0,0.00022191,2]
[368124725,1751032245193,-1115.8,0.00022191,2]
[368124728,1751032245205,-2078.45,0.00022191,2]
[368124729,1751032245214,-1750.13,0.00022191,2]
[368124731,1751032245223,-460.0,0.00022191,2]
[368124733,1751032245233,-460.0,0.00022191,2]
[368124735,1751032245244,-460.0,0.00022191,2]
[368124737,1751032245253,-1434.41,0.00022191,2]
[368124739,1751032245263,-460.0,0.00022191,2]
[368124742,1751032245273,-460.0,0.00022191,2]
[368124744,1751032245282,-605.01,0.00022191,2]
[368124745,1751032245291,-500.0,0.00022273,2]
[368124748,1751032245300,-818.85055983,0.00022368,2]
[368124749,1751032245310,-6204.46356053,0.00022383,7]
[368124751,1751032245319,-2200.0,0.0002239,2]
[368124753,1751032245330,-697.0,0.00022416,2]
[368124756,1751032245341,-697.0,0.00022417,2]
[368124758,1751032245351,-460.0,0.00022465,2]
[368124759,1751032245361,-460.0,0.00022465,2]
[368124761,1751032245371,-652.89,0.00022465,2]
[368124763,1751032245382,-460.0,0.00022465,2]
[368124765,1751032245392,-2172.8,0.00022465,2]
[368124767,1751032245402,-1061.75,0.00022465,2]
[368124769,1751032245411,-817.76,0.00022465,2]
[368124772,1751032245422,-460.0,0.00022465,2]
[368124773,1751032245433,-2093.98,0.00022465,2]
[368124776,1751032245445,-462.9,0.00022465,2]
[368124778,1751032245455,-585.84,0.00022465,2]
[368124780,1751032245464,-460.0,0.00022465,2]
[368124781,1751032245473,-460.0,0.00022465,2]
[368124783,1751032245486,-218.18061685,0.00022465,2]
[368124785,1751032245495,-460.0,0.00022465,2]
[368124787,1751032245505,-460.0,0.00022465,2]
[368124789,1751032245515,-378.39355747,0.00022465,2]
[368124791,1751032245525,-760.73,0.00022465,2]
[368124793,1751032245537,-994.85,0.00022465,2]
[368124795,1751032245548,-707.37,0.00022465,2]
[368124797,1751032245558,-460.0,0.00022465,2]
[368124799,1751032245568,-460.0,0.00022465,2]
[368124801,1751032245582,-460.0,0.00022465,2]
[368124803,1751032245591,-460.0,0.00022465,2]
[368124805,1751032245601,-1474.22,0.00022465,2]
[368124807,1751032245610,-460.0,0.00022465,2]
[368124809,1751032245620,-1115.8,0.00022465,2]
[368124811,1751032245630,-2078.45,0.00022465,2]
[368124813,1751032245639,-1750.13,0.00022465,2]
[368124815,1751032245649,-371.7,0.00022465,2]
[368124817,1751032245659,-460.0,0.00022465,2]
[368124819,1751032245668,-460.0,0.00022465,2]
[368124821,1751032245678,-1434.41,0.00022465,2]
[368124823,1751032245687,-460.0,0.00022465,2]
[368124825,1751032245697,-460.0,0.00022465,2]
[368124827,1751032245706,-605.01,0.00022465,2]
[368124829,1751032245716,-608.605965,0.00022516,2]
[368124831,1751032245725,-1000.0,0.00022516,2]
[368124833,1751032245736,-1000.0,0.00022516,2]
[368124835,1751032245746,-1000.0,0.00022516,2]
[368124837,1751032245755,-1200.0,0.00022516,2]
[368124839,1751032245764,-1000.0,0.00022516,2]
[368124841,1751032245774,-673.05894953,0.00022516,2]
[368124843,1751032245783,-587.0,0.00022565,2]
[368124845,1751032245793,-6204.46356053,0.0002259,7]
[368124847,1751032245803,-54292.21774689,0.00022593,2]
[368124849,1751032245812,-243.756944,0.00022603,2]
[368124851,1751032245821,-697.0,0.00022629,2]
[368124853,1751032245831,-174.71796,0.00022698,7]
[368124855,1751032245840,-900.0,0.00022707,2]
[368124857,1751032245849,-292.79433797,0.00022717,2]
[368124859,1751032245858,-167.18330633,0.00022719,2]
[368124861,1751032245867,-900.0,0.00022721,2]
[368124863,1751032245877,-900.0,0.00022733,2]
[368124865,1751032245886,-1600.0,0.00022738,2]
[368124867,1751032245896,-460.0,0.00022739,2]
[368124869,1751032245905,-326.56277563,0.00022739,2]
[368124871,1751032245915,-652.89,0.00022739,2]
[368124873,1751032245925,-460.0,0.00022739,2]
[368124875,1751032245934,-2172.8,0.00022739,2]
[368124877,1751032245944,-1061.75,0.00022739,2]
[368124879,1751032245953,-817.76,0.00022739,2]
[368124881,1751032245962,-460.0,0.00022739,2]
[368124883,1751032245971,-2093.98,0.00022739,2]
[368124885,1751032245981,-462.9,0.00022739,2]
[368124887,1751032245991,-585.84,0.00022739,2]
[368124889,1751032246000,-460.0,0.00022739,2]
[368124891,1751032246009,-157.70454968,0.00022739,2]
[368124893,1751032246018,-424.3073764,0.00022739,2]
[368124895,1751032246028,-460.0,0.00022739,2]
[368124897,1751032246037,-760.73,0.00022739,2]
[368124899,1751032246047,-994.85,0.00022739,2]
[368124901,1751032246056,-707.37,0.00022739,2]
[368124903,1751032246066,-460.0,0.00022739,2]
[368124905,1751032246076,-460.0,0.00022739,2]
[368124907,1751032246085,-460.0,0.00022739,2]
[368124909,1751032246094,-308.7809123,0.00022739,2]
[368124911,1751032246103,-1474.22,0.00022739,2]
[368124913,1751032246113,-460.0,0.00022739,2]
[368124915,1751032246122,-1115.8,0.00022739,2]
[368124917,1751032246131,-2078.45,0.00022739,2]
[368124919,1751032246141,-1750.13,0.00022739,2]
[368124921,1751032246150,-460.0,0.00022739,2]
[368124923,1751032246160,-1434.41,0.00022739,2]
[368124925,1751032246169,-460.0,0.00022739,2]
[368124927,1751032246178,-460.0,0.00022739,2]
[368124929,1751032246188,-605.01,0.00022739,2]
[368124931,1751032246197,-900.0,0.00022743,2]
[368124933,1751032246207,-432.12858055,0.00022743,2]
[368124935,1751032246216,-900.0,0.00022757,2]
[368124937,1751032246226,-6204.46356053,0.00022797,7]
[368124939,1751032246235,-900.0,0.00022818,2]
[368124941,1751032246244,-500.0,0.00022819,2]
[368124943,1751032246254,-500.0,0.00022819,2]
[368124944,1751032246263,-500.0,0.00022819,2]
[368124945,1751032246273,-500.0,0.00022819,2]
[368124946,1751032246283,-154.4173165,0.00022819,2]
[368124947,1751032246294,-500.0,0.00022819,2]
[368124948,1751032246303,-500.0,0.00022819,2]
[368124950,1751032246312,-1000.0,0.00022821,2]
[368124951,1751032246321,-194.39251329,0.0002284,2]
[368124964,1751032246331,-1600.0,0.00022857,2]
[368124966,1751032246448,-182.83945459,0.00022872,2]
[368124968,1751032246457,-697.0,0.00022883,2]
[368124971,1751032246467,-1400.0,0.00022891,2]
[368124973,1751032246477,-900.0,0.0002294,2]
[368124975,1751032246488,-1600.0,0.00022954,2]
[368124977,1751032246497,-1600.0,0.00022976,2]
[368124979,1751032246507,-2000.0,0.00023,2]
[368124981,1751032246518,-2000.0,0.00023,2]
[368124983,1751032246527,-269.95456355,0.00023,8]
[368124985,1751032246537,-2256.39,0.00023,2]
[368124987,1751032246546,-500.0,0.00023,8]
[368124989,1751032246555,-1000.0,0.00023,5]
[368124991,1751032246564,-214.91804724,0.00023,3]
[368124993,1751032246573,-230.26210603,0.00023,3]
[368124995,1751032246583,-500.0,0.00023,2]
[368124997,1751032246592,-160.0,0.00023,3]
[368124999,1751032246602,-836.98798914,0.00023,3]
[368125001,1751032246611,-160.0,0.00023,3]
[368125003,1751032246620,-200.0,0.00023,2]
[368125005,1751032246630,-6204.46356053,0.00023003,8]
[368125007,1751032246639,-223.0315306,0.00023008,2]
[368125009,1751032246649,-900.0,0.0002301,2]
[368125011,1751032246658,-553.96491498,0.00023013,2]
[368125013,1751032246667,-652.89,0.00023013,2]
[368125015,1751032246677,-460.0,0.00023013,2]
[368125017,1751032246687,-2172.8,0.00023013,2]
[368125019,1751032246696,-1061.75,0.00023013,2]
[368125021,1751032246705,-817.76,0.00023013,2]
[368125023,1751032246714,-460.0,0.00023013,2]
[368125025,1751032246724,-2093.98,0.00023013,2]
[368125027,1751032246734,-462.9,0.00023013,2]
[368125029,1751032246744,-585.84,0.00023013,2]
[368125031,1751032246753,-460.0,0.00023013,2]
[368125033,1751032246762,-254.60685134,0.00023013,2]
[368125035,1751032246772,-760.73,0.00023013,2]
[368125037,1751032246781,-994.85,0.00023013,2]
[368125039,1751032246790,-707.37,0.00023013,2]
[368125041,1751032246800,-460.0,0.00023013,2]
[368125043,1751032246809,-460.0,0.00023013,2]
[368125045,1751032246819,-460.0,0.00023013,2]
[368125047,1751032246828,-1474.22,0.00023013,2]
[368125049,1751032246838,-460.0,0.00023013,2]
[368125051,1751032246847,-1115.8,0.00023013,2]
[368125053,1751032246858,-2078.45,0.00023013,2]
[368125056,1751032246867,-1750.13,0.00023013,2]
[368125058,1751032246877,-460.0,0.00023013,2]
[368125060,1751032246887,-1434.41,0.00023013,2]
[368125062,1751032246896,-460.0,0.00023013,2]
[368125064,1751032246906,-460.0,0.00023013,2]
[368125066,1751032246915,-605.01,0.00023013,2]
[368125068,1751032246925,-1500.0,0.00023064,2]
[368125070,1751032246934,-1500.0,0.00023064,2]
[368125072,1751032246944,-1500.0,0.00023064,2]
[368125074,1751032246954,-1800.0,0.00023064,2]
[368125076,1751032246963,-1500.0,0.00023064,2]
[368125078,1751032246972,-900.0,0.00023098,2]
[368125080,1751032246982,-169.01433676,0.000231,2]
[368125082,1751032246991,-818.85055983,0.000231,2]